fUST/lending_fUST_20240612
["ID","MTS","AMOUNT","RATE_DAILY","PERIOD"]
[329119323,1718121652932,10000.0,0.00023,30]
[329119339,1718121691979,220.27295854,0.00018,15]
[329119340,1718121696820,822.21,0.00010959,2]
[329119343,1718121787514,530.36056878,9.999e-05,2]
[329119344,1718121812527,220.27295853,0.00018,15]
[329119345,1718121822643,155.02170304,9.999e-05,2]
[329119346,1718121868133,155.02170304,9.999e-05,2]
[329119347,1718121974749,372.78766585,9.999e-05,2]
[329119451,1718122237796,-684.691199,0.00014737,2]
[329119454,1718122237808,-2411.36306232,0.00015,2]
[329119455,1718122237820,-1100.93008145,0.00015269,2]
[329119458,1718122237831,-300.0,0.0001527,2]
[329119477,1718122237980,-2114.12320999,0.00015271,2]
[329119479,1718122237991,-300.0,0.00015287,2]
[329119481,1718122238003,-31451.1201941,0.00015288,2]
[329119483,1718122238015,-1911.54148934,0.0001558,2]
[329119485,1718122238025,-20478.13447617,0.00015581,2]
[329119487,1718122238039,-4421.86552383,0.00015581,2]
[329119489,1718122238050,-275.67415562,0.000165,2]
[329119492,1718122238061,-521.74381403,0.00016709,2]
[329119493,1718122238071,-309.81867689,0.00016709,2]
[329119496,1718122238082,-489.40086406,0.00016709,2]
[329119498,1718122238092,-3.76196966,0.00016709,2]
[329119598,1718122239174,-1687.68941334,0.00016709,2]
[329119600,1718122239185,-237.36312585,0.0001671,2]
[329119602,1718122239204,-15190.16022127,0.0001671,2]
[329119604,1718122239222,-234.94474719,0.00017801,2]
[329119606,1718122239234,-280.64652962,0.00017895,2]
[329119608,1718122239247,-38714.03293051,0.00017993,2]
[329119610,1718122239258,-41584.18105877,0.00017995,2]
[329119612,1718122239269,-234.36975919,0.00017996,2]
[329119614,1718122239280,-187.72309001,0.00017996,2]
[329119616,1718122239291,-523.44982235,0.00017996,2]
[329119618,1718122239302,-282.19775427,0.00017996,2]
[329119620,1718122239313,-2639.48407245,0.00017997,2]
[329119622,1718122239324,-342.01175769,0.00017998,2]
[329119624,1718122239334,-309.95350775,0.00017998,2]
[329119626,1718122239345,-155.20500085,0.00017998,2]
[329119628,1718122239357,-241.69907593,0.00017998,2]
[329119630,1718122239367,-331.14541743,0.00017998,2]
[329119632,1718122239378,-155.76320507,0.00017998,2]
[329119634,1718122239389,-247.01657342,0.00017998,2]
[329119636,1718122239399,-216.23913996,0.00017998,2]
[329119638,1718122239410,-2811.42087811,0.00017998,2]
[329119640,1718122239420,-39114.71989726,0.00017998,2]
[329119643,1718122239442,-156.11176586,0.00017998,2]
[329119645,1718122239454,-927.1117103,0.00017998,2]
[329119647,1718122239465,-155.07072833,0.00017998,2]
[329119649,1718122239477,-205.43005303,0.00017998,2]
[329119652,1718122239488,-155.04772179,0.00017998,2]
[329119654,1718122239500,-272.06813117,0.00017998,2]
[329119656,1718122239512,-158.76299279,0.00017998,2]
[329119658,1718122239522,-518.97414235,0.00017999,2]
[329119660,1718122239534,-265733.61964998,0.00018,2]
[329119662,1718122239545,-220.34273242,0.00018,2]
[329119664,1718122239556,-280.64652961,0.00018191,2]
[329119666,1718122239566,-280.64652961,0.00018487,2]
[329119668,1718122239577,-758.02343648,0.000185,2]
[329119670,1718122239589,-280.64652961,0.00018782,2]
[329119672,1718122239602,-163.03047349,0.00019,2]
[329119674,1718122239615,-280.64652961,0.00019078,2]
[329119676,1718122239626,-529.30850121,0.00019177,2]
[329119678,1718122239637,-387.81507343,0.00019178,2]
[329119680,1718122239649,-260.08409602,0.00019178,2]
[329119683,1718122239660,-500.0,0.00019178,2]
[329119685,1718122239672,-500.0,0.00019178,2]
[329119686,1718122239683,-500.0,0.00019178,2]
[329119689,1718122239693,-616.92371617,0.00019178,2]
[329119690,1718122239704,-500.0,0.00019178,2]
[329119693,1718122239714,-500.0,0.00019178,2]
[329119694,1718122239725,-500.0,0.00019178,2]
[329119697,1718122239735,-500.0,0.00019178,2]
[329119699,1718122239747,-623.89938234,0.00019178,2]
[329119701,1718122239758,-500.0,0.00019178,2]
[329119703,1718122239769,-500.0,0.00019178,2]
[329119705,1718122239781,-500.0,0.00019178,2]
[329119707,1718122239791,-460.78248789,0.00019178,2]
[329119709,1718122239803,-500.0,0.00019178,2]
[329119711,1718122239814,-500.0,0.00019178,2]
[329119713,1718122239825,-623.89938234,0.00019178,2]
[329119715,1718122239836,-500.0,0.00019178,2]
[329119717,1718122239846,-500.0,0.00019178,2]
[329119719,1718122239857,-500.0,0.00019178,2]
[329119721,1718122239868,-337.22011855,0.00019178,2]
[329119723,1718122239879,-623.89938234,0.00019178,2]
[329119725,1718122239889,-500.0,0.00019178,2]
[329119727,1718122239900,-188.12671823,0.00019178,2]
[329119729,1718122239912,-623.89938234,0.00019178,2]
[329119731,1718122239923,-500.0,0.00019178,2]
[329119733,1718122239933,-500.0,0.00019178,2]
[329119735,1718122239944,-623.89938234,0.00019178,2]
[329119738,1718122239955,-500.0,0.00019178,2]
[329119740,1718122239966,-623.89938234,0.00019178,2]
[329119742,1718122239977,-500.0,0.00019178,2]
[329119744,1718122239989,-500.0,0.00019178,2]
[329119746,1718122240000,-623.89938234,0.00019178,2]
[329119748,1718122240014,-500.0,0.00019178,2]
[329119750,1718122240025,-500.0,0.00019178,2]
[329119752,1718122240036,-623.89938234,0.00019178,2]
[329119754,1718122240047,-500.0,0.00019178,2]
[329119756,1718122240057,-500.0,0.00019178,2]
[329119758,1718122240069,-623.89938234,0.00019178,2]
[329119760,1718122240080,-500.0,0.00019178,2]
[329119762,1718122240091,-623.89938234,0.00019178,2]
[329119764,1718122240102,-623.89938234,0.00019178,2]
[329119766,1718122240112,-623.89938234,0.00019178,2]
[329119768,1718122240122,-500.0,0.00019178,2]
[329119770,1718122240134,-623.89938234,0.00019178,2]
[329119772,1718122240145,-500.0,0.00019178,2]
[329119774,1718122240156,-623.89938234,0.00019178,2]
[329119776,1718122240167,-623.89938234,0.00019178,2]
[329119778,1718122240178,-500.0,0.00019178,2]
[329119780,1718122240189,-500.0,0.00019178,2]
[329119782,1718122240208,-500.0,0.00019178,2]
[329119784,1718122240220,-500.0,0.00019178,2]
[329119786,1718122240231,-500.0,0.00019178,2]
[329119788,1718122240242,-500.0,0.00019178,2]
[329119790,1718122240254,-500.0,0.00019178,2]
[329119792,1718122240266,-500.0,0.00019178,2]
[329119793,1718122240279,-500.0,0.00019178,2]
[329119795,1718122240290,-500.0,0.00019178,2]
[329119797,1718122240301,-500.0,0.00019178,2]
[329119800,1718122240313,-500.0,0.00019178,2]
[329119802,1718122240324,-500.0,0.00019178,2]
[329119804,1718122240335,-500.0,0.00019178,2]
[329119806,1718122240347,-500.0,0.00019178,2]
[329119808,1718122240359,-500.0,0.00019178,2]
[329119810,1718122240371,-500.0,0.00019178,2]
[329119812,1718122240382,-500.0,0.00019178,2]
[329119814,1718122240393,-583.59618355,0.00019178,2]
[329119816,1718122240405,-500.0,0.00019178,2]
[329119818,1718122240416,-500.0,0.00019178,2]
[329119820,1718122240427,-2876.62280871,0.00019178,2]
[329119822,1718122240438,-790.60151774,0.00019178,2]
[329119824,1718122240450,-2876.62280871,0.00019178,2]
[329119826,1718122240461,-790.60151774,0.00019178,2]
[329119828,1718122240472,-2876.62280871,0.00019178,2]
[329119830,1718122240483,-790.60151774,0.00019178,2]
[329119832,1718122240496,-2876.62280871,0.00019178,2]
[329119834,1718122240507,-790.60151774,0.00019178,2]
[329119836,1718122240519,-2876.62280871,0.00019178,2]
[329119838,1718122240530,-790.60151774,0.00019178,2]
[329119840,1718122240542,-2876.62280871,0.00019178,2]
[329119842,1718122240552,-790.60151774,0.00019178,2]
[329119844,1718122240563,-790.60151774,0.00019178,2]
[329119846,1718122240574,-790.60151774,0.00019178,2]
[329119848,1718122240585,-2876.62280871,0.00019178,2]
[329119850,1718122240598,-790.60151774,0.00019178,2]
[329119852,1718122240614,-2876.62280871,0.00019178,2]
[329119854,1718122240625,-790.60151774,0.00019178,2]
[329119856,1718122240636,-790.60151774,0.00019178,2]
[329119858,1718122240649,-790.60151774,0.00019178,2]
[329119860,1718122240660,-790.60151774,0.00019178,2]
[329119862,1718122240670,-2876.62280871,0.00019178,2]
[329119864,1718122240684,-790.60151774,0.00019178,2]
[329119866,1718122240696,-2876.62280871,0.00019178,2]
[329119867,1718122240706,-790.60151774,0.00019178,2]
[329119868,1718122240717,-2876.62280871,0.00019178,2]
[329119869,1718122240728,-790.60151774,0.00019178,2]
[329119870,1718122240739,-790.60151774,0.00019178,2]
[329119871,1718122240753,-790.60151774,0.00019178,2]
[329119872,1718122240764,-790.60151774,0.00019178,2]
[329119873,1718122240774,-2876.62280871,0.00019178,2]
[329119874,1718122240785,-790.60151774,0.00019178,2]
[329119875,1718122240796,-790.60151774,0.00019178,2]
[329119876,1718122240806,-790.60151774,0.00019178,2]
[329119877,1718122240817,-790.60151774,0.00019178,2]
[329119878,1718122240827,-790.60151774,0.00019178,2]
[329119879,1718122240838,-790.60151774,0.00019178,2]
[329119880,1718122240848,-790.60151774,0.00019178,2]
[329119881,1718122240859,-790.60151774,0.00019178,2]
[329119882,1718122240870,-790.60151774,0.00019178,2]
[329119884,1718122240881,-500.0,0.00019178,2]
[329119886,1718122240892,-500.0,0.00019178,2]
[329119888,1718122240902,-500.0,0.00019178,2]
[329119891,1718122240912,-364.8571198,0.00019178,2]
[329119892,1718122240923,-500.0,0.00019178,2]
[329119893,1718122240934,-500.0,0.00019178,2]
[329119895,1718122240945,-786.51219955,0.00019178,2]
[329119897,1718122240956,-2829.55079912,0.00019178,2]
[329119899,1718122240966,-786.51219955,0.00019178,2]
[329119901,1718122240977,-2829.55079912,0.00019178,2]
[329119903,1718122240988,-786.51219955,0.00019178,2]
[329119905,1718122241002,-2829.55079912,0.00019178,2]
[329119907,1718122241012,-786.51219955,0.00019178,2]
[329119909,1718122241023,-2829.55079912,0.00019178,2]
[329119911,1718122241034,-786.51219955,0.00019178,2]
[329119913,1718122241045,-2829.55079912,0.00019178,2]
[329119915,1718122241058,-786.51219955,0.00019178,2]
[329119917,1718122241069,-786.51219955,0.00019178,2]
[329119919,1718122241081,-2829.55079912,0.00019178,2]
[329119921,1718122241092,-2829.55079912,0.00019178,2]
[329119923,1718122241103,-786.51219955,0.00019178,2]
[329119925,1718122241114,-786.51219955,0.00019178,2]
[329119927,1718122241125,-2829.55079912,0.00019178,2]
[329119929,1718122241137,-786.51219955,0.00019178,2]
[329119931,1718122241148,-2829.55079912,0.00019178,2]
[329119933,1718122241159,-786.51219955,0.00019178,2]
[329119935,1718122241171,-786.51219955,0.00019178,2]
[329119937,1718122241183,-2829.55079912,0.00019178,2]
[329119939,1718122241194,-2829.55079912,0.00019178,2]
[329119941,1718122241206,-2829.55079912,0.00019178,2]
[329119943,1718122241218,-786.51219955,0.00019178,2]
[329119945,1718122241229,-2829.55079912,0.00019178,2]
[329119947,1718122241240,-786.51219955,0.00019178,2]
[329119949,1718122241255,-2829.55079912,0.00019178,2]
[329119951,1718122241265,-2829.55079912,0.00019178,2]
[329119962,1718122241377,-786.51219955,0.00019178,2]
[329119964,1718122241388,-2829.55079912,0.00019178,2]
[329119966,1718122241399,-502.68438171,0.00019178,2]
[329119968,1718122241409,-500.0,0.00019178,2]
[329119970,1718122241419,-768.36191802,0.00019178,2]
[329119972,1718122241429,-2879.50351744,0.00019178,2]
[329119974,1718122241439,-2879.50351744,0.00019178,2]
[329119976,1718122241450,-768.36191802,0.00019178,2]
[329119978,1718122241461,-2879.50351744,0.00019178,2]
[329119980,1718122241471,-768.36191802,0.00019178,2]
[329119982,1718122241481,-768.36191802,0.00019178,2]
[329119984,1718122241492,-2879.50351744,0.00019178,2]
[329119986,1718122241505,-768.36191802,0.00019178,2]
[329119988,1718122241515,-2879.50351744,0.00019178,2]
[329119990,1718122241525,-768.36191802,0.00019178,2]
[329119992,1718122241535,-2879.50351744,0.00019178,2]
[329119994,1718122241545,-2879.50351744,0.00019178,2]
[329119996,1718122241556,-768.36191802,0.00019178,2]
[329119997,1718122241566,-768.36191802,0.00019178,2]
[329120000,1718122241577,-768.36191802,0.00019178,2]
[329120002,1718122241588,-768.36191802,0.00019178,2]
[329120003,1718122241605,-768.36191802,0.00019178,2]
[329120005,1718122241616,-768.36191802,0.00019178,2]
[329120007,1718122241627,-2879.50351744,0.00019178,2]
[329120010,1718122241639,-2822.86907092,0.00019178,2]
[329120012,1718122241649,-2822.86907092,0.00019178,2]
[329120013,1718122241660,-2822.86907092,0.00019178,2]
[329120015,1718122241670,-2822.86907092,0.00019178,2]
[329120018,1718122241683,-2822.86907092,0.00019178,2]
[329120019,1718122241694,-2822.86907092,0.00019178,2]
[329120021,1718122241705,-2822.86907092,0.00019178,2]
[329120023,1718122241716,-2822.86907092,0.00019178,2]
[329120026,1718122241726,-2822.86907092,0.00019178,2]
[329120028,1718122241737,-500.0,0.00019178,2]
[329120029,1718122241749,-768.36191796,0.00019178,2]
[329120031,1718122241759,-2832.27863449,0.00019178,2]
[329120034,1718122241770,-2832.27863449,0.00019178,2]
[329120036,1718122241781,-2832.27863449,0.00019178,2]
[329120037,1718122241791,-2832.27863449,0.00019178,2]
[329120039,1718122241801,-2832.27863449,0.00019178,2]
[329120041,1718122241812,-2832.27863449,0.00019178,2]
[329120043,1718122241823,-212.58864281,0.00019178,2]
[329120045,1718122241834,-500.0,0.00019178,2]
[329120047,1718122241844,-244.55884842,0.00019178,2]
[329120049,1718122241855,-151.0,0.00019178,2]
[329120051,1718122241866,-154.928181,0.00019178,2]
[329120053,1718122241877,-151.0,0.00019178,2]
[329120056,1718122241887,-446.163915,0.00019178,2]
[329120057,1718122241898,-151.0,0.00019178,2]
[329120059,1718122241909,-151.0,0.00019178,2]
[329120061,1718122241919,-446.163915,0.00019178,2]
[329120063,1718122241929,-151.0,0.00019178,2]
[329120065,1718122241940,-151.0,0.00019178,2]
[329120067,1718122241950,-151.0,0.00019178,2]
[329120069,1718122241960,-151.0,0.00019178,2]
[329120071,1718122241971,-283.502064,0.00019178,2]
[329120073,1718122241982,-1000.0,0.00019178,2]
[329120075,1718122241995,-1000.0,0.00019178,2]
[329120077,1718122242008,-1000.0,0.00019178,2]
[329120079,1718122242019,-1000.0,0.00019178,2]
[329120081,1718122242029,-1000.0,0.00019178,2]
[329120083,1718122242038,-1000.0,0.00019178,2]
[329120085,1718122242049,-1000.0,0.00019178,2]
[329120087,1718122242060,-1000.0,0.00019178,2]
[329120089,1718122242070,-1000.0,0.00019178,2]
[329120091,1718122242080,-1000.0,0.00019178,2]
[329120093,1718122242090,-1000.0,0.00019178,2]
[329120095,1718122242100,-1000.0,0.00019178,2]
[329120097,1718122242109,-1000.0,0.00019178,2]
[329120099,1718122242119,-1000.0,0.00019178,2]
[329120101,1718122242130,-151.0,0.00019178,2]
[329120103,1718122242139,-1000.0,0.00019178,2]
[329120105,1718122242149,-151.0,0.00019178,2]
[329120107,1718122242160,-1000.0,0.00019178,2]
[329120109,1718122242170,-151.0,0.00019178,2]
[329120111,1718122242180,-151.0,0.00019178,2]
[329120113,1718122242191,-1000.0,0.00019178,2]
[329120115,1718122242207,-1000.0,0.00019178,2]
[329120116,1718122242217,-1000.0,0.00019178,2]
[329120118,1718122242228,-1000.0,0.00019178,2]
[329120120,1718122242238,-1000.0,0.00019178,2]
[329120123,1718122242251,-1000.0,0.00019178,2]
[329120125,1718122242262,-1000.0,0.00019178,2]
[329120126,1718122242273,-1000.0,0.00019178,2]
[329120128,1718122242283,-1000.0,0.00019178,2]
[329120130,1718122242293,-1000.0,0.00019178,2]
[329120132,1718122242303,-1000.0,0.00019178,2]
[329120134,1718122242314,-1000.0,0.00019178,2]
[329120136,1718122242324,-1000.0,0.00019178,2]
[329120138,1718122242335,-1000.0,0.00019178,2]
[329120140,1718122242345,-1000.0,0.00019178,2]
[329120142,1718122242355,-1000.0,0.00019178,2]
[329120144,1718122242365,-1000.0,0.00019178,2]
[329120146,1718122242375,-1000.0,0.00019178,2]
[329120148,1718122242386,-1000.0,0.00019178,2]
[329120150,1718122242396,-1000.0,0.00019178,2]
[329120152,1718122242406,-160.041859,0.00019178,2]
[329120154,1718122242417,-205.533983,0.00019178,2]
[329120156,1718122242428,-151.0,0.00019289,2]
[329120158,1718122242438,-155.244776,0.00019289,2]
[329120160,1718122242448,-155.244776,0.00019289,2]
[329120162,1718122242459,-151.0,0.00019289,2]
[329120164,1718122242469,-151.0,0.00019289,2]
[329120166,1718122242479,-151.0,0.00019289,2]
[329120168,1718122242489,-151.0,0.00019289,2]
[329120170,1718122242503,-272.03779,0.00019289,2]
[329120172,1718122242514,-151.0,0.00019289,2]
[329120174,1718122242525,-151.0,0.00019289,2]
[329120176,1718122242535,-151.0,0.00019289,2]
[329120178,1718122242547,-160.0,0.0001936,2]
[329120180,1718122242557,-320.0,0.00019908,2]
[329120182,1718122242569,-844.92180321,0.0002,2]
[329120184,1718122242579,-529.07913635,0.0002,4]
[329120186,1718122242590,-5774.29465313,0.0002,2]
[329120188,1718122242606,-34332.27768698,0.0002,2]
[329120190,1718122242617,-996.06196749,0.0002,2]
[329120192,1718122242627,-1274.80743493,0.0002,2]
[329120194,1718122242639,-151.0,0.0002,2]
[329120196,1718122242649,-210.18536,0.0002,2]
[329120197,1718122242659,-210.18536,0.0002,2]
[329120199,1718122242669,-216.131151,0.0002,2]
[329120201,1718122242682,-898.670929,0.0002,2]
[329120203,1718122242693,-898.670929,0.0002,2]
[329120205,1718122242705,-151.0,0.0002,2]
[329120207,1718122242715,-151.0,0.0002,2]
[329120209,1718122242725,-151.0,0.0002,2]
[329120211,1718122242736,-151.0,0.0002,2]
[329120213,1718122242746,-164.722608,0.0002,2]
[329120215,1718122242760,-155.244776,0.0002,2]
[329120217,1718122242770,-155.244776,0.0002,2]
[329120219,1718122242780,-151.0,0.0002,2]
[329120221,1718122242790,-151.0,0.0002,2]
[329120223,1718122242800,-151.0,0.0002,2]
[329120226,1718122242811,-151.0,0.0002,2]
[329120229,1718122242822,-151.0,0.0002,2]
[329120232,1718122242833,-196.79802,0.0002,2]
[329120234,1718122242844,-151.0,0.0002,2]
[329120237,1718122242854,-446.163915,0.0002,2]
[329120239,1718122242865,-151.0,0.0002,2]
[329120241,1718122242875,-446.163915,0.0002,2]
[329120243,1718122242886,-151.0,0.0002,2]
[329120245,1718122242896,-151.0,0.0002,2]
[329120247,1718122242907,-151.0,0.0002,2]
[329120249,1718122242918,-620.38357797,0.00020348,2]
[329120251,1718122242928,-580.61033652,0.00020456,2]
[329120253,1718122242939,-456.326226,0.00020548,2]
[329120255,1718122242950,-456.326226,0.00020548,2]
[329120257,1718122242960,-456.326226,0.00020548,2]
[329120259,1718122242970,-456.326226,0.00020548,2]
[329120261,1718122242980,-210.18536,0.000209,2]
[329120263,1718122242990,-210.18536,0.000209,2]
[329120265,1718122243003,-210.18536,0.000209,2]
[329120267,1718122243013,-210.18536,0.000209,2]
[329120269,1718122243022,-898.670929,0.000209,2]
[329120271,1718122243032,-898.670929,0.000209,2]
[329120273,1718122243042,-898.670929,0.000209,2]
[329120274,1718122243052,-898.670929,0.000209,2]
[329120277,1718122243063,-151.0,0.000209,2]
[329120279,1718122243073,-151.0,0.000209,2]
[329120281,1718122243083,-155.768776,0.000209,2]
[329120283,1718122243093,-228.962132,0.000209,2]
[329120284,1718122243103,-155.244776,0.000209,2]
[329120287,1718122243114,-155.244776,0.000209,2]
[329120288,1718122243124,-1118.84073064,0.000209,2]
[329120291,1718122243135,-151.0,0.000209,2]
[329120293,1718122243145,-151.0,0.000209,2]
[329120295,1718122243155,-151.0,0.000209,2]
[329120297,1718122243165,-229.784082,0.000209,2]
[329120299,1718122243175,-151.0,0.000209,2]
[329120301,1718122243185,-151.0,0.000209,2]
[329120303,1718122243196,-456.326226,0.000209,2]
[329120305,1718122243213,-456.326226,0.000209,2]
[329120307,1718122243223,-446.163915,0.000209,2]
[329120309,1718122243234,-151.0,0.000209,2]
[329120311,1718122243245,-446.163915,0.000209,2]
[329120315,1718122243258,-151.0,0.000209,2]
[329120317,1718122243267,-151.0,0.000209,2]
[329120321,1718122243277,-151.0,0.000209,2]
[329120325,1718122243287,-7269.5959632,0.00021,2]
[329120327,1718122243298,-169.26513994,0.00021,2]
[329120330,1718122243309,-395.6298145,0.00021,2]
[329120333,1718122243319,-151.0,0.00021,2]
[329120336,1718122243330,-5472.52733108,0.00021019,2]
[329120340,1718122243340,-4239.70515949,0.00021161,2]
[329120343,1718122243353,-3000.0,0.00021197,2]
[329120346,1718122243364,-3000.0,0.00021197,2]
[329120364,1718122243374,-3000.0,0.00021197,2]
[329120367,1718122243466,-3000.0,0.00021197,2]
[329120370,1718122243476,-3000.0,0.00021197,2]
[329120373,1718122243486,-3000.0,0.00021197,2]
[329120376,1718122243498,-45063.9773208,0.00021331,2]
[329120379,1718122243509,-45063.9773208,0.00021351,2]
[329120382,1718122243518,-45063.9773208,0.00021365,2]
[329120385,1718122243529,-45063.9773208,0.00021379,2]
[329120387,1718122243539,-45063.9773208,0.00021386,2]
[329120390,1718122243550,-49358.5560093,0.00021391,2]
[329120414,1718122243705,-6695.92458652,0.00021391,2]
[329120417,1718122243718,-1318.37428406,0.00021391,2]
[329120424,1718122243746,-334.39650053,0.00019178,2]
[329120426,1718122243762,-665.60349947,0.00019178,2]
[329120428,1718122243772,-16677.24961383,0.00021391,2]
[329120431,1718122243784,-1755.94292763,0.00021391,2]
[329120446,1718122244018,-1000.0,0.00019178,2]
[329120447,1718122244029,-1000.0,0.00019178,2]
[329120448,1718122244039,-1000.0,0.00019178,2]
[329120449,1718122244049,-1000.0,0.00019178,2]
[329120450,1718122244059,-1000.0,0.00019178,2]
[329120451,1718122244070,-1000.0,0.00019178,2]
[329120452,1718122244080,-1000.0,0.00019178,2]
[329120453,1718122244090,-27.6,0.00019178,2]
[329120454,1718122244103,-972.4,0.00019178,2]
[329120455,1718122244113,-11483.3242202,0.00021391,2]
[329120456,1718122244134,-1251.4726332,0.00021391,2]
[329120457,1718122244146,-619.71305479,0.00021391,2]
[329120459,1718122244160,-261.546,0.00021391,2]
[329120492,1718122244521,-1000.0,0.00019178,2]
[329120494,1718122244532,-1000.0,0.00019178,2]
[329120496,1718122244542,-886.39289661,0.00019178,2]
[329120530,1718122244919,-113.60710339,0.00019178,2]
[329120532,1718122244930,-1000.0,0.00019178,2]
[329120534,1718122244941,-1000.0,0.00019178,2]
[329120536,1718122244951,-1000.0,0.00019178,2]
[329120538,1718122244961,-598.27172575,0.00019178,2]
[329120911,1718122248929,-401.72827425,0.00019178,2]
[329120913,1718122248939,-1000.0,0.00019178,2]
[329120915,1718122248950,-916.82870979,0.00019178,2]
[329122119,1718123433631,-257.57734752,0.00016197,2]
[329122166,1718123439530,-1004.24765176,0.00016197,2]
[329122167,1718123439671,-722.24896098,0.00016197,2]
[329122168,1718123439682,-691.512051,0.00016198,2]
[329122169,1718123439693,-275.67415562,0.000165,2]
[329122170,1718123439704,-24900.0,0.00016865,2]
[329122171,1718123439715,-2785.0213593,0.00016893,2]
[329122173,1718123439726,-1276.2035857,0.00017052,2]
[329122175,1718123439737,-250.0,0.00017183,2]
[329122177,1718123439748,-876.68948426,0.00018,2]
[329122179,1718123439759,-499.05104118,0.000185,2]
[329122181,1718123439769,-1118.84073064,0.000189,2]
[329122183,1718123439780,-163.11846323,0.00019,2]
[329122185,1718123439790,-175.2059,0.00019178,2]
[329122187,1718123439801,-588.1044864,0.00019825,2]
[329122189,1718123439811,-154.3585261,0.00019825,2]
[329122191,1718123439821,-205.268679,0.00019825,2]
[329122193,1718123439832,-9502.43188347,0.0002,2]
[329122195,1718123439843,-155.12913232,0.0002,2]
[329122197,1718123439854,-5774.29465313,0.0002,2]
[329122199,1718123439865,-844.92180321,0.0002,2]
[329122201,1718123439879,-157.67879839,0.0002,2]
[329122203,1718123439890,-529.07913635,0.0002,4]
[329122205,1718123439900,-932.870483,0.0002,2]
[329122207,1718123439911,-292.5249381,0.00020627,2]
[329122209,1718123439922,-153.0,0.00020627,2]
[329122211,1718123439933,-153.0,0.00020627,2]
[329122213,1718123439944,-292.5249381,0.00020627,2]
[329122215,1718123439954,-153.0,0.00020627,2]
[329122217,1718123439966,-206.9349318,0.00020627,2]
[329122219,1718123439977,-153.0,0.00020627,2]
[329122222,1718123439988,-306.0,0.00020647,2]
[329122225,1718123440002,-500.0,0.00020945,2]
[329122227,1718123440013,-153.0,0.00020978,2]
[329122229,1718123440023,-7269.5959632,0.00021,2]
[329122231,1718123440034,-394.12424459,0.00021,2]
[329122233,1718123440046,-471.19093909,0.00021,2]
[329122235,1718123440058,-5472.52733108,0.00021019,2]
[329122237,1718123440069,-308.7263411,0.00021216,2]
[329122239,1718123440083,-4239.70515949,0.00021225,2]
[329122241,1718123440094,-150.4,0.00021279,2]
[329122243,1718123440105,-2467.76339278,0.00021315,2]
[329122245,1718123440116,-54935.68852266,0.00021317,2]
[329122247,1718123440131,-2467.76339278,0.00021322,2]
[329122250,1718123440142,-54935.68852266,0.00021344,2]
[329122253,1718123440152,-2467.76339278,0.0002135,2]
[329122256,1718123440163,-2467.76339278,0.00021351,2]
[329122259,1718123440174,-2467.76339278,0.00021362,2]
[329122262,1718123440185,-54935.68852266,0.00021378,2]
[329122264,1718123440195,-54935.68852266,0.00021386,2]
[329122267,1718123440205,-54935.68852266,0.00021387,2]
[329122269,1718123440216,-48496.37247409,0.00021391,2]
[329122271,1718123440227,-13382.50373594,0.00021394,2]
[329122274,1718123440242,-12327.60466633,0.00021394,2]
[329122276,1718123440261,-216262.37525385,0.00021394,2]
[329122278,1718123440272,-144446.8,0.00021395,2]
[329122280,1718123440284,-14904.30934764,0.00021397,2]
[329122283,1718123440302,-800.0,0.00021397,2]
[329122464,1718123441959,-757.06655071,0.00021397,2]
[329122466,1718123441973,-14166.098491,0.00021397,2]
[329122468,1718123441983,-5260.66279658,0.00021399,2]
[329122470,1718123441994,-313.9867788,0.00021449,2]
[329122472,1718123442008,-154.3298821,0.00021463,2]
[329122474,1718123442019,-1000.0,0.000215,2]
[329122476,1718123442030,-5653.85074,0.000215,2]
[329122478,1718123442040,-166.666666,0.00021507,2]
[329122480,1718123442051,-1156.2,0.00021536,2]